[Event "SC Kreuzberg IM 2018"]
[Site "Berlin"]
[Date "2018.08.05"]
[Round "1.1"]
[White "Glantz, Robert"]
[Black "Brunello, Marina"]
[Result "0-1"]
[ECO "B94"]
[WhiteElo "2336"]
[BlackElo "2280"]
[Annotator "NA"]
[PlyCount "84"]
[EventDate "2018.08.06"]
[EventType "tourn"]
[EventCountry "GER"]
[SourceTitle "playchess.com"]
[Source "ChessBase"]
[SourceQuality "1"]
[TimeControl "40/5400+30:1800+30"]

1. e4 {[%emt 1:30:24]} c5 {[%emt 1:30:20]} 2. Nf3 {[%emt 1:30:46]} d6 {[%emt 1:30:40]} 3. d4 {[%emt 1:31:08]} cxd4 {[%emt 1:31:01]} 4. Nxd4 {[%emt 1:31:31]} Nf6 {[%emt 1:31:24]} 5. Nc3 {[%emt 1:31:52]} a6 {[%emt 1:31:47]} 6. Bg5 {[%emt 1:32:01]} Nbd7 {[%emt 1:31:23]} 7. f4 {[%emt 1:32:09]} Qc7 {[%emt 1:31:32]} 8. Qf3 {[%emt 1:32:19]} h6 {[%emt 1:31:46]} 9. Bxf6 {[%emt 1:32:29]} Nxf6 {[%emt 1:31:59]} 10. f5 {[%emt 1:32:36]} Qc5 {[%emt 1:29:18]} 11. O-O-O {[%emt 1:32:48]} g5 {[%emt 1:29:46]} 12. fxg6 {[%emt 1:32:50]} Bg4 {[%emt 1:30:10]} 13. gxf7+ {[%emt 1:33:12]} Kxf7 {[%emt 1:30:36]} 14. Qd3 {[%emt 1:33:23]} Bxd1 {[%emt 1:31:01]} 15. Nxd1 {[%emt 1:33:45]} Bg7 {[%emt 1:30:57]} 16. g3 {[%emt 1:33:31]} Nxe4 {[%emt 1:30:00]} 17. Qxe4 {[%emt 1:33:50]} Qxd4 {[%emt 1:30:16]} 18. Bc4+ {[%emt 1:32:29]} Ke8 {[%emt 1:28:29]} 19. Qxb7 {[%emt 1:32:16]} Qa7 {[%emt 1:28:44]} 20. Qd5 {[%emt 1:25:20]} Kd8 {[%emt 1:24:28]} 21. Re1 {[%emt 1:03:50]} Rb8 {[%emt 1:17:33]} 22. c3 {[%emt 0:57:02]} Rf8 {[%emt 1:13:13]} 23. Qd3 {[%emt 0:44:46]} a5 {[%emt 1:04:11]} 24. Qh7 {[%emt 0:44:02]} Bf6 {[%emt 1:03:09]} 25. h4 {[%emt 0:36:01]} Rh8 {[%emt 0:58:19]} 26. Qf7 {[%emt 0:33:55]} Qc5 {[%emt 0:52:15]} 27. a4 {[%emt 0:22:21]} Rc8 {[%emt 0:32:53]} 28. Bd5 {[%emt 0:20:04]} Qd4 {[%emt 0:27:56]} 29. Re4 {[%emt 0:13:34]} Qd3 {[%emt 0:28:00]} 30. Re3 {[%emt 0:13:52]} Qh7 {[%emt 0:22:56]} 31. Qe6 {[%emt 0:14:06]} Qg7 {[%emt 0:23:11]} 32. Kb1 {[%emt 0:12:18]} Be5 {[%emt 0:20:55]} 33. Bb7 {[%emt 0:11:55]} Rc7 {[%emt 0:21:07]} 34. Qd5 {[%emt 0:11:06]} Qg6+ {[%emt 0:18:13]} 35. Re4 {[%emt 0:06:08]} Rc5 {[%emt 0:16:49]} 36. Qb3 {[%emt 0:06:19]} Kc7 {[%emt 0:16:44]} 37. h5 {[%emt 0:02:27]} Qxh5 {[%emt 0:12:26]} 38. Ne3 {[%emt 0:02:09]} Rb8 {[%emt 0:09:57]} 39. Nd5+ {[%emt 0:00:35]} Rxd5 {[%emt 0:09:05]} 40. Qxd5 {[%emt 0:00:52]} Rxb7 {[%emt 0:09:22]} 41. Rc4+ {[%emt 0:25:47]} Kb8 {[%emt 0:37:19]} 42. Qxa5 {[%emt 0:20:40]} Qd1+ {[%emt 0:37:17]} 0-1

[Event "SC Kreuzberg IM 2018"]
[Site "Berlin"]
[Date "2018.08.05"]
[Round "1.3"]
[White "Berger, Steve"]
[Black "Moritz, Aron"]
[Result "1/2-1/2"]
[ECO "B23"]
[WhiteElo "2428"]
[BlackElo "2199"]
[Annotator "NA"]
[PlyCount "96"]
[EventDate "2018.08.06"]
[EventType "tourn"]
[EventCountry "GER"]
[SourceTitle "playchess.com"]
[Source "ChessBase"]
[SourceQuality "1"]
[TimeControl "40/5400+30:1800+30"]

1. e4 {[%emt 1:30:26]} c5 {[%emt 1:30:23]} 2. Nc3 {[%emt 1:30:44]} Nc6 {[%emt 1:30:45]} 3. Nge2 {[%emt 1:30:53]} g6 {[%emt 1:30:16]} 4. h4 {[%emt 1:31:13]} h5 {[%emt 1:29:14]} 5. d4 {[%emt 1:29:07]} cxd4 {[%emt 1:27:05]} 6. Nxd4 {[%emt 1:29:34]} Bg7 {[%emt 1:23:02]} 7. Nb3 {[%emt 1:28:16]} Nf6 {[%emt 1:20:37]} 8. Bg5 {[%emt 1:25:11]} O-O {[%emt 1:17:26]} 9. Be2 {[%emt 1:19:35]} d6 {[%emt 1:12:07]} 10. O-O {[%emt 1:18:08]} a6 {[%emt 1:11:12]} 11. a4 $15 {[%emt 1:16:45]} Be6 {[%emt 1:09:54]} 12. Re1 {[%emt 1:16:19]} Rc8 {[%emt 1:08:13]} 13. Bf1 {[%emt 1:15:10]} Ne5 {[%emt 0:48:57]} 14. Nd5 {[%emt 1:11:21]} Nc4 {[%emt 0:46:38]} 15. Bxc4 {[%emt 1:07:57]} Rxc4 {[%emt 0:47:03]} 16. c3 {[%emt 1:01:19]} Re8 {[%emt 0:44:55]} 17. Nd4 {[%emt 0:50:34]} Bxd5 {[%emt 0:43:11]} 18. exd5 {[%emt 0:47:14]} Rc5 {[%emt 0:39:38]} 19. Qf3 {[%emt 0:41:10]} Qc8 {[%emt 0:37:25]} 20. Bxf6 {[%emt 0:36:51]} Bxf6 {[%emt 0:37:21]} 21. Nb3 {[%emt 0:37:01]} Rc4 {[%emt 0:36:34]} 22. g3 {[%emt 0:37:09]} Qh3 {[%emt 0:30:52]} 23. Nd2 {[%emt 0:33:53]} Rcc8 {[%emt 0:24:51]} 24. Re3 {[%emt 0:33:05]} Kg7 {[%emt 0:23:37]} 25. Ne4 {[%emt 0:29:51]} Qf5 {[%emt 0:23:14]} 26. Qd1 {[%emt 0:26:56]} Red8 {[%emt 0:19:22]} 27. Qd3 {[%emt 0:26:02]} Be5 {[%emt 0:11:24]} 28. Rae1 {[%emt 0:25:30]} Qg4 {[%emt 0:10:18]} 29. Kg2 {[%emt 0:24:58]} Rb8 {[%emt 0:08:40]} 30. b3 {[%emt 0:16:11]} b5 {[%emt 0:08:13]} 31. axb5 {[%emt 0:16:11]} axb5 {[%emt 0:08:07]} 32. R1e2 {[%emt 0:12:55]} Rdc8 {[%emt 0:06:47]} 33. f3 {[%emt 0:11:57]} Qf5 {[%emt 0:06:24]} 34. Ra2 {[%emt 0:11:33]} Rc7 {[%emt 0:06:35]} 35. Ra6 {[%emt 0:08:04]} Rbc8 {[%emt 0:06:26]} 36. Rc6 {[%emt 0:07:57]} Rxc6 {[%emt 0:04:52]} 37. dxc6 {[%emt 0:08:25]} b4 {[%emt 0:04:32]} 38. cxb4 {[%emt 0:06:27]} Rxc6 {[%emt 0:04:55]} 39. b5 {[%emt 0:05:53]} Rb6 {[%emt 0:03:58]} 40. Qc4 {[%emt 0:03:37]} Qd7 {[%emt 0:00:34]} 41. Nc3 {[%emt 0:28:26]} Bxc3 {[%emt 0:26:00]} 42. Qxc3+ {[%emt 0:25:38]} f6 {[%emt 0:26:24]} 43. Qa5 {[%emt 0:25:43]} Rxb5 {[%emt 0:15:06]} 44. Rxe7+ {[%emt 0:26:03]} Qxe7 {[%emt 0:15:33]} 45. Qxb5 {[%emt 0:26:28]} Qe3 {[%emt 0:15:37]} 46. Qd7+ {[%emt 0:22:54]} Kh6 {[%emt 0:15:11]} 47. Qxd6 {[%emt 0:23:13]} Qe2+ {[%emt 0:15:37]} 48. Kg1 {[%emt 0:23:35]} Qe1+ {[%emt 0:16:01]} 1/2-1/2

[Event "SC Kreuzberg IM 2018"]
[Site "Berlin"]
[Date "2018.08.05"]
[Round "1.4"]
[White "Barath, Madhan"]
[Black "Muse, Drazen"]
[Result "0-1"]
[ECO "C41"]
[WhiteElo "2307"]
[BlackElo "2361"]
[Annotator "NA"]
[PlyCount "72"]
[EventDate "2018.08.06"]
[EventType "tourn"]
[EventCountry "GER"]
[SourceTitle "playchess.com"]
[Source "ChessBase"]
[SourceQuality "1"]
[TimeControl "40/5400+30:1800+30"]

1. d4 {[%emt 1:30:27]} d6 {[%emt 1:30:13]} 2. e4 {[%emt 1:30:51]} Nf6 {[%emt 1:30:39]} 3. Nc3 {[%emt 1:31:16]} e5 {[%emt 1:31:04]} 4. Nf3 {[%emt 1:31:39]} exd4 {[%emt 1:31:18]} 5. Nxd4 {[%emt 1:31:58]} Be7 {[%emt 1:31:43]} 6. Be2 {[%emt 1:26:35]} O-O {[%emt 1:31:46]} 7. O-O {[%emt 1:25:20]} Re8 {[%emt 1:31:16]} 8. f4 {[%emt 1:23:27]} Bf8 {[%emt 1:31:19]} 9. Bf3 {[%emt 1:23:48]} Na6 {[%emt 1:29:59]} 10. Nb3 {[%emt 1:18:25]} c6 {[%emt 1:26:57]} 11. Kh1 {[%emt 1:09:19]} Nc7 {[%emt 1:25:21]} 12. Re1 {[%emt 0:45:49]} d5 {[%emt 1:15:11]} 13. e5 {[%emt 0:41:59]} Nd7 {[%emt 1:15:35]} 14. Nd4 {[%emt 0:41:05]} Nb6 {[%emt 1:14:18]} 15. a4 {[%emt 0:28:03]} f6 {[%emt 1:14:15]} 16. b3 {[%emt 0:23:16]} fxe5 {[%emt 1:10:24]} 17. fxe5 {[%emt 0:23:41]} Bb4 {[%emt 1:10:33]} 18. Bd2 {[%emt 0:18:10]} Qh4 {[%emt 1:07:12]} 19. Nce2 {[%emt 0:16:45]} Bxd2 {[%emt 1:06:28]} 20. Qxd2 {[%emt 0:17:13]} Rxe5 {[%emt 1:06:34]} 21. Ng3 {[%emt 0:12:22]} Nd7 {[%emt 1:02:27]} 22. Ngf5 {[%emt 0:10:11]} Qf6 {[%emt 1:02:23]} 23. Qf4 {[%emt 0:02:19]} Ne6 {[%emt 0:57:47]} 24. Qg3 {[%emt 0:00:12]} Nxd4 {[%emt 0:57:14]} 25. Nxd4 {[%emt 0:00:04]} Rxe1+ {[%emt 0:54:32]} 26. Qxe1 {[%emt 0:00:24]} Ne5 {[%emt 0:52:07]} 27. Rd1 {[%emt 0:00:05]} Bg4 {[%emt 0:52:06]} 28. Bxg4 {[%emt 0:00:05]} Nxg4 {[%emt 0:52:30]} 29. Nf3 {[%emt 0:00:06]} Qf5 {[%emt 0:50:01]} 30. h3 {[%emt 0:00:06]} Nf6 {[%emt 0:50:22]} 31. Nd4 {[%emt 0:00:12]} Qe4 {[%emt 0:50:09]} 32. Qd2 {[%emt 0:00:18]} Re8 {[%emt 0:49:56]} 33. Qa5 {[%emt 0:00:03]} Qf4 {[%emt 0:46:48]} 34. Qxa7 {[%emt 0:00:05]} Qf2 {[%emt 0:45:24]} 35. Qa5 {[%emt 0:00:05]} Nh5 {[%emt 0:40:53]} 36. Qc7 {[%emt 0:00:04]} Nf4 {[%emt 0:40:44]} 0-1

[Event "SC Kreuzberg IM 2018"]
[Site "Berlin"]
[Date "2018.08.05"]
[Round "1.5"]
[White "Malek, Daniel"]
[Black "Sandu, Mihaela"]
[Result "1-0"]
[ECO "A19"]
[WhiteElo "2383"]
[BlackElo "2268"]
[Annotator "NA"]
[PlyCount "59"]
[EventDate "2018.08.06"]
[EventType "tourn"]
[EventCountry "GER"]
[SourceTitle "playchess.com"]
[Source "ChessBase"]
[SourceQuality "1"]
[TimeControl "40/5400+30:1800+30"]

1. c4 {[%emt 1:30:26]} e6 {[%emt 1:30:01]} 2. Nc3 {[%emt 1:30:41]} Nf6 {[%emt 1:29:32]} 3. e4 {[%emt 1:30:53]} c5 {[%emt 1:28:53]} 4. f4 {[%emt 1:28:09]} Nc6 {[%emt 1:28:59]} 5. Nf3 {[%emt 1:28:25]} Be7 {[%emt 1:27:43]} 6. g3 {[%emt 1:23:44]} d5 {[%emt 1:15:30]} 7. e5 {[%emt 1:20:58]} Ng4 {[%emt 1:14:16]} 8. b3 {[%emt 1:06:24]} d4 {[%emt 0:42:23]} 9. Ne4 {[%emt 1:05:33]} d3 {[%emt 0:38:58]} 10. Ba3 {[%emt 0:38:06]} f5 {[%emt 0:26:30]} 11. Nf2 {[%emt 0:36:56]} Nxf2 {[%emt 0:26:30]} 12. Kxf2 {[%emt 0:37:19]} b6 {[%emt 0:22:36]} 13. Qb1 {[%emt 0:31:20]} Bb7 {[%emt 0:22:38]} 14. Qxd3 {[%emt 0:31:26]} g5 {[%emt 0:22:19]} 15. Rg1 {[%emt 0:21:54]} Qxd3 {[%emt 0:17:47]} 16. Bxd3 {[%emt 0:22:17]} Rd8 {[%emt 0:18:07]} 17. Ne1 {[%emt 0:21:03]} Rg8 {[%emt 0:14:18]} 18. Rf1 {[%emt 0:16:23]} gxf4 {[%emt 0:14:14]} 19. gxf4 {[%emt 0:16:47]} Bh4+ {[%emt 0:10:54]} 20. Ke3 {[%emt 0:17:03]} Rg7 {[%emt 0:07:30]} 21. Nf3 {[%emt 0:12:30]} Rgd7 {[%emt 0:07:01]} 22. Be2 {[%emt 0:12:45]} Nd4 {[%emt 0:05:02]} 23. Nxh4 {[%emt 0:12:31]} Nc2+ {[%emt 0:04:15]} 24. Kf2 {[%emt 0:12:53]} Nxa3 {[%emt 0:03:35]} 25. d3 {[%emt 0:12:27]} Nc2 {[%emt 0:04:00]} 26. Rad1 {[%emt 0:12:30]} Nb4 {[%emt 0:04:11]} 27. a3 {[%emt 0:10:34]} Nxd3+ {[%emt 0:02:25]} 28. Ke3 {[%emt 0:10:54]} Be4 {[%emt 0:02:45]} 29. Rg1 {[%emt 0:07:44]} a5 {[%emt 0:02:55]} 30. Rg8+ {[%emt 0:07:53]} 1-0

[Event "SC Kreuzberg IM 2018"]
[Site "Berlin"]
[Date "2018.08.05"]
[Round "2.1"]
[White "Brunello, Marina"]
[Black "Sandu, Mihaela"]
[Result "0-1"]
[ECO "B43"]
[WhiteElo "2280"]
[BlackElo "2268"]
[Annotator "NA"]
[PlyCount "78"]
[EventDate "2018.08.06"]
[EventType "tourn"]
[EventCountry "GER"]
[SourceTitle "playchess.com"]
[Source "ChessBase"]
[SourceQuality "1"]
[TimeControl "40/5400+30:1800+30"]

1. e4 c5 2. Nf3 e6 3. d4 cxd4 4. Nxd4 a6 5. Nc3 b5 6. Bd3 Qb6 7. Nf3 Qc7 8. O-O Bb7 9. Re1 Ne7 10. Bxb5 Ng6 11. Bd3 Be7 12. Be3 Nc6 13. Na4 Nce5 14. Nxe5 Nxe5 15. f4 Ng6 16. Qd2 {[%emt 1:00:00]} O-O {[%emt 1:02:20]} 17. b3 {[%emt 0:59:49]} f5 {[%emt 1:01:08]} 18. e5 {[%emt 0:56:24]} Nh4 {[%emt 0:50:27]} 19. Bf1 {[%emt 0:56:21]} g5 {[%emt 0:43:03]} 20. Rad1 {[%emt 0:47:52]} Bc6 {[%emt 0:39:23]} 21. Bb6 {[%emt 0:43:52]} Qc8 {[%emt 0:25:37]} 22. Be3 {[%emt 0:27:29]} gxf4 {[%emt 0:21:22]} 23. Bxf4 {[%emt 0:26:04]} Kh8 {[%emt 0:21:43]} 24. Kh1 {[%emt 0:20:18]} Rg8 {[%emt 0:21:36]} 25. Re2 {[%emt 0:18:16]} Qe8 {[%emt 0:16:32]} 26. Rf2 {[%emt 0:16:41]} Rg4 {[%emt 0:16:08]} 27. h3 {[%emt 0:14:21]} Rg7 {[%emt 0:11:44]} 28. Qe2 {[%emt 0:13:12]} Qg8 {[%emt 0:10:46]} 29. Kh2 {[%emt 0:13:13]} Qb8 {[%emt 0:06:07]} 30. Rd3 {[%emt 0:12:17]} Qb7 {[%emt 0:05:42]} 31. Rg3 {[%emt 0:11:58]} Rxg3 {[%emt 0:05:28]} 32. Bxg3 {[%emt 0:12:23]} Rg8 {[%emt 0:05:17]} 33. Nb2 {[%emt 0:08:58]} Ng6 {[%emt 0:03:51]} 34. Nd3 {[%emt 0:09:17]} Be4 {[%emt 0:03:18]} 35. Qe3 {[%emt 0:06:11]} Qc8 {[%emt 0:02:45]} 36. c4 {[%emt 0:05:36]} Qf8 {[%emt 0:02:02]} 37. Be2 {[%emt 0:00:12]} Qg7 {[%emt 0:02:02]} 38. Bf3 {[%emt 0:00:12]} Bxd3 {[%emt 0:02:10]} 39. Rd2 {[%emt 0:00:16]} f4 {[%emt 0:01:32]} 0-1

[Event "SC Kreuzberg IM 2018"]
[Site "Berlin"]
[Date "2018.08.05"]
[Round "2.2"]
[White "Muse, Drazen"]
[Black "Malek, Daniel"]
[Result "1/2-1/2"]
[ECO "A06"]
[WhiteElo "2361"]
[BlackElo "2383"]
[Annotator "NA"]
[PlyCount "119"]
[EventDate "2018.08.06"]
[EventType "tourn"]
[EventCountry "GER"]
[SourceTitle "playchess.com"]
[Source "ChessBase"]
[SourceQuality "1"]
[TimeControl "40/5400+30:1800+30"]

1. Nf3 {[%emt 1:30:43]} Nf6 {[%emt 1:30:43]} 2. e3 {[%emt 1:30:43]} d5 {[%emt 1:30:43]} 3. b3 {[%emt 1:26:21]} Bf5 {[%emt 1:29:10]} 4. Bb2 {[%emt 1:26:41]} e6 {[%emt 1:29:35]} 5. h3 {[%emt 1:25:57]} h6 {[%emt 1:29:30]} 6. Be2 {[%emt 1:24:51]} Be7 {[%emt 1:29:34]} 7. d3 {[%emt 1:25:03]} c5 {[%emt 1:29:26]} 8. Ne5 {[%emt 1:22:48]} Nbd7 {[%emt 1:27:42]} 9. Nxd7 {[%emt 1:22:14]} Qxd7 {[%emt 1:27:57]} 10. Nd2 {[%emt 1:21:57]} Bh7 {[%emt 1:25:42]} 11. a4 {[%emt 1:20:21]} Rd8 {[%emt 1:04:56]} 12. O-O {[%emt 1:15:09]} O-O {[%emt 1:05:12]} 13. f4 {[%emt 1:11:14]} Qc7 {[%emt 0:57:32]} 14. Qe1 {[%emt 1:10:35]} Nd7 {[%emt 0:57:14]} 15. Kh1 {[%emt 0:59:07]} Bf6 {[%emt 0:57:23]} 16. Bxf6 {[%emt 0:59:25]} Nxf6 {[%emt 0:57:48]} 17. Qh4 {[%emt 0:59:32]} Ne8 {[%emt 0:53:20]} 18. g4 {[%emt 0:53:27]} Nd6 {[%emt 0:52:58]} 19. Nf3 {[%emt 0:52:02]} a6 {[%emt 0:44:48]} 20. Rg1 {[%emt 0:49:35]} Rfe8 {[%emt 0:43:59]} 21. g5 {[%emt 0:48:39]} Nf5 {[%emt 0:43:12]} 22. Qf2 {[%emt 0:47:20]} hxg5 {[%emt 0:29:34]} 23. Nxg5 {[%emt 0:47:26]} e5 {[%emt 0:27:03]} 24. Nxh7 {[%emt 0:44:09]} Kxh7 {[%emt 0:27:20]} 25. Rg5 {[%emt 0:44:32]} Nh6 {[%emt 0:26:39]} 26. Rag1 {[%emt 0:41:52]} g6 {[%emt 0:25:27]} 27. f5 {[%emt 0:32:43]} Rd6 {[%emt 0:25:25]} 28. Qg3 {[%emt 0:31:50]} Qc6 {[%emt 0:22:32]} 29. fxg6+ {[%emt 0:24:47]} Rxg6 {[%emt 0:22:29]} 30. Bh5 {[%emt 0:24:42]} Rxg5 {[%emt 0:22:05]} 31. Qxg5 {[%emt 0:25:06]} Rg8 {[%emt 0:21:21]} 32. Qxe5 {[%emt 0:25:31]} Qd7 {[%emt 0:14:10]} 33. Bg4 {[%emt 0:23:48]} Nxg4 {[%emt 0:13:48]} 34. Rxg4 {[%emt 0:23:43]} Rg6 {[%emt 0:14:07]} 35. Rh4+ {[%emt 0:22:46]} Rh6 {[%emt 0:14:27]} 36. Rxh6+ {[%emt 0:22:48]} Kxh6 {[%emt 0:14:48]} 37. Qf6+ {[%emt 0:23:09]} Kh7 {[%emt 0:13:48]} 38. Kg2 {[%emt 0:22:58]} Kg8 {[%emt 0:13:30]} 39. Qg5+ {[%emt 0:23:09]} Kf8 {[%emt 0:13:36]} 40. h4 {[%emt 0:23:20]} c4 {[%emt 0:12:36]} 41. h5 {[%emt 0:21:33]} cxd3 {[%emt 0:28:18]} 42. cxd3 {[%emt 0:51:52]} Qc6 {[%emt 0:27:06]} 43. h6 {[%emt 0:49:53]} d4+ {[%emt 0:24:34]} 44. Kg3 {[%emt 0:49:49]} Qd6+ {[%emt 0:24:16]} 45. Kf3 {[%emt 0:50:00]} dxe3 {[%emt 0:22:32]} 46. h7 {[%emt 0:49:12]} Qc6+ {[%emt 0:21:42]} 47. Kg3 {[%emt 0:49:22]} Qd6+ {[%emt 0:21:51]} 48. Kh3 {[%emt 0:49:30]} Qd7+ {[%emt 0:22:01]} 49. Kh4 {[%emt 0:44:27]} Qd4+ {[%emt 0:21:34]} 50. Kh5 {[%emt 0:44:44]} e2 {[%emt 0:20:23]} 51. Qg3 {[%emt 0:29:26]} Qd5+ {[%emt 0:17:42]} 52. Kh4 {[%emt 0:23:04]} Qh1+ {[%emt 0:13:43]} 53. Kg5 {[%emt 0:23:23]} Kg7 {[%emt 0:13:33]} 54. Qe5+ {[%emt 0:23:15]} Kxh7 {[%emt 0:13:49]} 55. Qxe2 {[%emt 0:23:39]} Qh6+ {[%emt 0:13:14]} 56. Kg4 {[%emt 0:22:49]} Qg6+ {[%emt 0:13:08]} 57. Kf4 {[%emt 0:21:39]} Qd6+ {[%emt 0:11:52]} 58. Kg4 {[%emt 0:21:46]} Qg6+ 59. Kf3 Z0 60. d4 1/2-1/2

[Event "SC Kreuzberg IM 2018"]
[Site "Berlin"]
[Date "2018.08.05"]
[Round "2.3"]
[White "Moritz, Aron"]
[Black "Barath, Madhan"]
[Result "1/2-1/2"]
[ECO "B90"]
[WhiteElo "2199"]
[BlackElo "2307"]
[Annotator "NA"]
[PlyCount "63"]
[EventDate "2018.08.06"]
[EventType "tourn"]
[EventCountry "GER"]
[SourceTitle "playchess.com"]
[Source "ChessBase"]
[SourceQuality "1"]
[TimeControl "40/5400+30:1800+30"]

1. e4 {[%emt 1:30:27]} c5 {[%emt 1:30:25]} 2. Nf3 {[%emt 1:32:02]} d6 3. d4 cxd4 4. Nxd4 Nf6 5. Nc3 a6 6. Be3 e5 7. Nb3 Be7 8. Qd2 Be6 {[%emt 1:33:25]} 9. O-O-O {[%emt 1:33:25]} O-O {[%emt 1:33:25]} 10. f4 b5 {[%emt 1:32:19]} 11. f5 Bd7 12. g4 b4 13. Nd5 {[%emt 1:27:19]} Nxd5 {[%emt 1:32:22]} 14. Qxd5 {[%emt 1:19:44]} Bc6 {[%emt 1:32:45]} 15. Qc4 {[%emt 1:18:42]} a5 {[%emt 1:31:50]} 16. Kb1 {[%emt 1:14:36]} a4 {[%emt 1:10:04]} 17. Nc1 {[%emt 1:13:12]} b3 {[%emt 1:08:32]} 18. g5 {[%emt 1:07:50]} Bxg5 {[%emt 0:57:32]} 19. Bxg5 {[%emt 1:05:26]} Qxg5 {[%emt 0:54:26]} 20. Rxd6 {[%emt 1:00:24]} Rc8 {[%emt 0:28:11]} 21. f6 {[%emt 0:51:35]} Nd7 {[%emt 0:24:00]} 22. Bh3 {[%emt 0:39:23]} bxc2+ {[%emt 0:08:05]} 23. Ka1 {[%emt 0:31:44]} a3 {[%emt 0:02:59]} 24. Rxc6 {[%emt 0:31:02]} axb2+ {[%emt 0:02:16]} 25. Kxb2 {[%emt 0:31:27]} Nb6 {[%emt 0:00:12]} 26. Rxc8+ {[%emt 0:00:41]} Rxc8 {[%emt 0:00:41]} 27. Qb4 {[%emt 0:17:03]} Nc4+ {[%emt 0:00:08]} 28. Kxc2 {[%emt 0:15:08]} Na3+ {[%emt 0:00:31]} 29. Kb2 {[%emt 0:12:01]} Nc4+ {[%emt 0:01:00]} 30. Ka1 Qe3 31. Rd1 Qxh3 32. Qxc4 1/2-1/2

[Event "SC Kreuzberg IM 2018"]
[Site "Berlin"]
[Date "2018.08.05"]
[Round "4.1"]
[White "Brunello, Marina"]
[Black "Muse, Drazen"]
[Result "1-0"]
[ECO "B06"]
[WhiteElo "2280"]
[BlackElo "2361"]
[Annotator "NA"]
[PlyCount "125"]
[EventDate "2018.08.06"]
[EventType "tourn"]
[EventCountry "GER"]
[SourceTitle "playchess.com"]
[Source "ChessBase"]
[SourceQuality "1"]
[TimeControl "40/5400+30:1800+30"]

1. e4 {[%emt 1:30:24]} g6 {[%emt 1:30:08]} 2. d4 {[%emt 1:30:45]} Bg7 {[%emt 1:29:50]} 3. Nc3 {[%emt 1:30:07]} a6 {[%emt 1:30:14]} 4. Nf3 {[%emt 1:29:52]} d6 {[%emt 1:29:49]} 5. Be3 {[%emt 1:29:13]} Nd7 {[%emt 1:29:01]} 6. Bd3 {[%emt 1:27:08]} Ngf6 {[%emt 1:26:08]} 7. Qd2 {[%emt 1:21:43]} Ng4 {[%emt 1:25:14]} 8. Bg5 {[%emt 1:19:07]} h6 {[%emt 1:23:58]} 9. Bh4 {[%emt 1:19:24]} g5 {[%emt 1:23:56]} 10. Bg3 {[%emt 1:19:24]} c5 {[%emt 1:24:12]} 11. Ne2 {[%emt 1:12:54]} cxd4 {[%emt 1:21:30]} 12. Nfxd4 {[%emt 1:11:07]} Nc5 {[%emt 1:21:07]} 13. h4 {[%emt 1:08:33]} Ne5 {[%emt 1:15:30]} 14. hxg5 {[%emt 0:58:57]} hxg5 {[%emt 1:11:55]} 15. O-O-O {[%emt 0:56:25]} Rxh1 {[%emt 1:01:33]} 16. Rxh1 {[%emt 0:56:49]} Qb6 {[%emt 1:01:51]} 17. Rh7 {[%emt 0:43:27]} Bf6 {[%emt 0:58:10]} 18. Bxe5 {[%emt 0:40:59]} Nxd3+ {[%emt 0:57:51]} 19. Qxd3 {[%emt 0:40:53]} dxe5 {[%emt 0:58:01]} 20. Qc4 {[%emt 0:28:23]} e6 {[%emt 0:39:32]} 21. Nf5 {[%emt 0:28:04]} Bd7 {[%emt 0:39:43]} 22. Ne3 {[%emt 0:21:12]} Rc8 {[%emt 0:30:21]} 23. Qd3 {[%emt 0:17:24]} Bb5 {[%emt 0:28:19]} 24. Qd1 {[%emt 0:16:22]} Rd8 {[%emt 0:13:35]} 25. Qe1 {[%emt 0:16:47]} Be7 {[%emt 0:13:47]} 26. Ng4 {[%emt 0:14:59]} Qc5 {[%emt 0:12:46]} 27. Nc3 {[%emt 0:14:40]} Bc4 {[%emt 0:12:14]} 28. Nh6 {[%emt 0:11:42]} g4 {[%emt 0:11:28]} 29. Rh8+ {[%emt 0:08:26]} Kd7 {[%emt 0:09:26]} 30. Qd2+ {[%emt 0:08:28]} Qd4 {[%emt 0:09:45]} 31. Rxd8+ {[%emt 0:08:09]} Kxd8 {[%emt 0:09:57]} 32. Nxg4 {[%emt 0:06:34]} Ke8 {[%emt 0:09:40]} 33. Qh6 {[%emt 0:05:59]} b5 {[%emt 0:08:19]} 34. Qh8+ {[%emt 0:05:57]} Bf8 {[%emt 0:08:31]} 35. Qxe5 {[%emt 0:04:27]} Qxe5 {[%emt 0:08:57]} 36. Nxe5 {[%emt 0:04:53]} Bf1 {[%emt 0:09:20]} 37. g3 {[%emt 0:04:52]} Bg2 {[%emt 0:08:08]} 38. a3 {[%emt 0:04:07]} Bc5 {[%emt 0:08:02]} 39. Nd3 {[%emt 0:03:25]} Bd4 {[%emt 0:08:26]} 40. Ne2 {[%emt 0:03:04]} Bb6 {[%emt 0:08:49]} 41. e5 {[%emt 0:00:04]} Be4 {[%emt 0:07:18]} 42. f4 {[%emt 0:25:48]} Be3+ {[%emt 0:37:23]} 43. Kd1 {[%emt 0:26:15]} Bf3 {[%emt 0:37:41]} 44. Ke1 {[%emt 0:26:28]} Kd7 {[%emt 0:37:38]} 45. Nc3 {[%emt 0:26:31]} Kc7 {[%emt 0:37:29]} 46. Nd1 {[%emt 0:26:34]} Bd4 {[%emt 0:37:21]} 47. Kd2 {[%emt 0:26:46]} Kb7 {[%emt 0:37:24]} 48. Ne3 {[%emt 0:22:18]} Kc7 {[%emt 0:36:39]} 49. c3 {[%emt 0:21:43]} Bb6 {[%emt 0:36:58]} 50. Nb4 {[%emt 0:21:38]} Bb7 {[%emt 0:36:13]} 51. Nbc2 {[%emt 0:21:59]} Kd7 {[%emt 0:36:15]} 52. Nd4 {[%emt 0:22:18]} Be4 {[%emt 0:36:29]} 53. Ng4 {[%emt 0:22:07]} Bb1 {[%emt 0:35:54]} 54. Ke3 {[%emt 0:22:08]} Bc5 {[%emt 0:35:57]} 55. Nf6+ {[%emt 0:22:20]} Kc7 {[%emt 0:36:05]} 56. Ne4 {[%emt 0:21:25]} Bb6 {[%emt 0:35:42]} 57. b4 {[%emt 0:21:40]} Kd8 {[%emt 0:32:18]} 58. Nc5 {[%emt 0:21:14]} Bxc5 {[%emt 0:31:03]} 59. bxc5 {[%emt 0:21:39]} Ba2 {[%emt 0:30:36]} 60. g4 {[%emt 0:21:30]} Bd5 {[%emt 0:30:53]} 61. f5 {[%emt 0:21:22]} exf5 {[%emt 0:30:48]} 62. gxf5 {[%emt 0:20:54]} Kd7 {[%emt 0:30:54]} 63. Kf4 {[%emt 0:21:11]} 1-0